Cogmind - Beta 15 @@@ ROGUE MODE // 2025.08.23 @ 21:16:09 Player: Florist Result: Destroyed by OA-GJQ(R) with Subdweller Shrapnel Launcher Performance ------------- Evolutions (0) 0 Regions Visited (2) 400 Robots Destroyed (26) 130 Value Destroyed (710) 710 Prototype IDs (0) 0 Alien Tech Used (0) 0 Bonus (0) 0 TOTAL SCORE: 1240 Bonus ------- None Cogmind --------- Core Integrity 0/250 Matter 213/300 Energy 94/100 System Corruption 5% Temperature Cool (0) Movement Treading (160) Location -10/Subcaves Parts ------- > --- POWER (1) -------- (None) > --- PROPULSION (2) --- Light Treads Light Treads > --- UTILITY (2) ------ Scrap Shield > --- WEAPON (2) ------- Battle Cannon Battle Cannon > --- INVENTORY (5) ---- Light Treads Large Storage Unit Battle Rifle Hammer Scrap Shield Fragment (49) Peak State ------------ > --- POWER ------------ Light Ion Engine > --- PROPULSION ------- Light Treads Light Treads > --- UTILITY ---------- Large Storage Unit Light Armor Plating > --- WEAPON ----------- Rocket Launcher Rocket Launcher > --- INVENTORY -------- Light Ion Engine Light Treads Compact Wheel Large Storage Unit Structural Scanner Structural Scanner EM Pulse Gun EM Pulse Gun Assault Rifle Assault Rifle Rocket Launcher Rocket Launcher Plasma Cutter Hammer [Rating: 10] Favorites ----------- Power Light Ion Engine Engine Light Ion Engine Propulsion Light Treads Treads Light Treads Utility Scrap Shield Storage Large Storage Unit Protection Scrap Shield Weapon EM Pulse Gun Energy Gun EM Pulse Gun Ballistic Gun Battle Rifle Ballistic Cannon Battle Cannon Launcher Rocket Launcher Impact Weapon Hammer Build | -11 -10 -10 ------- Run | Yrd Mat Sub Slots Evolved . | . . . Power . | . . . Propulsion . | . . . Utility . | . . . Weapon . | . . . Parts Attached 21 | 7 9 5 Power 2 | 1 1 . Engine 2 | 1 1 . Core . | . . . Reactor . | . . . Propulsion 3 | 2 . 1 Treads 3 | 2 . 1 Leg . | . . . Wheel . | . . . Hover . | . . . Flight . | . . . Utility 5 | 1 3 1 Device . | . . . Storage 3 | 1 2 . Processor . | . . . Hackware . | . . . Protection 2 | . 1 1 Artifact . | . . . Weapon 11 | 3 5 3 Energy Gun 2 | 2 . . Energy Cannon . | . . . Ballistic Gun 3 | 1 1 1 Ballistic Cannon 2 | . . 2 Launcher 3 | . 3 . Special Weapon . | . . . Impact Weapon 1 | . 1 . Slashing Weapon . | . . . Piercing Weapon . | . . . Special Melee Weapon . | . . . Unidentified Prototypes . | . . . Corrupted Parts 1 | . . 1 System Corruption 4 | . . 4 Parts Lost 6 | . 2 4 Power 2 | . 1 1 Propulsion 1 | . . 1 Utility 1 | . 1 . Weapon 2 | . . 2 Highest Loss Streak 2 | . 2 1 To Critical Strikes . | . . . Average Backups 7 | 1 9 5 Power . | . . . Propulsion 1 | . 2 1 Utility 1 | . 2 1 Weapon 2 | . 3 2 Tool/Special . | . . . Unused Backups 9 | . 4 5 Power 1 | . 1 . Propulsion 2 | . . 2 Utility 4 | . 2 2 Weapon 1 | . 1 . Tool/Special 1 | . . 1 Average Slot Usage (%) 80 | . 93 70 Engine 5 | . 11 1 Treads 27 | . 28 27 Storage 7 | . 14 3 Protection 10 | . 10 10 Energy Gun 13 | . 24 4 Ballistic Gun 7 | . 2 10 Ballistic Cannon 6 | . . 11 Peak Build Rating 10 | 6 10 10 Average Rating 8 | 4 7 9 On Entrance 4 | . 6 8 Naked Turns . | . . . Heaviest Build 34 | 12 34 27 Greatest Support 40 | 40 40 40 Greatest Overweight (x) 1 | . . 1 Average Overweight (x) . | . . . Largest Inventory Capacity 15 | 8 15 15 Average Capacity 9 | 7 12 7 Most Carried 15 | 3 15 15 Average Carried 8 | 1 10 7 Final Capacity 15 | 8 15 5 Final Carried 15 | 3 15 5 Class Distribution -------------------- 100% | Mutant Dominant Class ---------------- Mutant | -10/Materials Mutant | -10/Subcaves Resources | -11 -10 -10 ----------- Run | Yrd Mat Sub Matter Collected 948 | 225 316 407 Remotely . | . . . Salvage Created 921 | . 590 331 Parts 68 | . 41 27 Haulers Intercepted 2 | . 2 . Recyclers Shooed . | . . . Parts Field Recycled . | . . . Retrieved Matter . | . . . Parts Self-Destructed 13 | . . 13 Prevented 1 | . . 1 Kills | -11 -10 -10 ------- Run | Yrd Mat Sub Combat Hostiles Destroyed 17 | . 10 7 Guns 9 | . 5 4 Cannons 1 | . . 1 AOE 5 | . 5 . Classes Destroyed 9 | . 7 2 Worker 3 | . 3 . Builder 2 | . 2 . Tunneler 1 | . 1 . Hauler 2 | . 2 . Operator 1 | . 1 . Grunt 11 | . 9 2 Artisan 2 | . . 2 Cobbler 1 | . . 1 Subdweller 6 | . 1 5 Best Kill Streak 4 | . 4 2 Combat Bots Only 3 | . 3 2 Max Kills in Single Turn 3 | . 3 2 Gunslinging 1 | . . 1 Exploded 3 | . 3 . Melee . | . . . Uniques/NPCs Destroyed . | . . . Combat | -11 -10 -10 -------- Run | Yrd Mat Sub Hostile Shots Fired 84 | . 34 50 Missed 25 | . 10 15 Hits 59 | . 24 35 Projectile 59 | . 24 35 AOE 1 | . . 1 Critical Strikes 2 | . 1 1 Damage Taken 1061 | . 367 694 Core 258 | . 100 158 Absorbed by Shields . | . . . Core Remaining (%) 100 | 100 . . Volleys Fired 101 | . 46 55 Largest 2 | . 2 2 Hottest 80 | . 80 80 Shots Fired 192 | . 92 100 Gun 149 | . 86 63 Cannon 37 | . . 37 Launcher 6 | . 6 . Special . | . . . Kinetic 98 | . 25 73 Thermal . | . . . Explosive 6 | . 6 . Electromagnetic 88 | . 61 27 Robot Hit Streak 16 | . 14 16 Robot Miss Streak 6 | . 6 2 Penetration Max . | . . . Secondary Targets 1 | . . 1 Max Gunslinging Chain 1 | . . 1 Shots Hit Robots 115 | . 48 67 Core Hits 46 | . 26 20 Critical Kills . | . . . Critical Parts Destroyed . | . . . Critical Strikes 4 | . 1 3 Blast 3 | . . 3 Corrupt 1 | . 1 . Melee Attacks 1 | . 1 . Impact 1 | . 1 . Slashing . | . . . Piercing . | . . . Sneak Attacks . | . . . Combat Hostiles . | . . . Follow-up Attacks . | . . . Damage Inflicted 2250 | . 1147 1103 Guns 1144 | . 567 577 Cannons 526 | . . 526 Explosions 580 | . 580 . Melee . | . . . Ramming . | . . . Kinetic 960 | . 104 856 Thermal 52 | . 52 . Explosive 528 | . 528 . Electromagnetic 710 | . 463 247 Impact . | . . . Slashing . | . . . Piercing . | . . . Highest Corruption 5 | . 1 5 Average Corruption 1 | . 1 2 Corruption Purged . | . . . Corruption Blocked . | . . . Effects 32 | . 8 24 Message Errors 3 | . . 3 Matter Fused 14 | . 4 10 Heat Flow Errors 2 | . 1 1 Energy Discharges 6 | . 3 3 Data Loss (minor) 1 | . . 1 Data Loss (major) 3 | . . 3 Misfires 2 | . . 2 Weapon Failures 1 | . . 1 Overload Shots . | . . . Overflow Damage 23 | . 7 16 Projectiles 16 | . . 16 Explosions 7 | . 7 . Melee . | . . . Knockbacks 5 | . . 5 Impact . | . . . Kinetic 5 | . . 5 Secondary . | . . . Self-Inflicted Damage 32 | . 32 . Shots 1 | . 1 . Rammed . | . . . Targets Rammed . | . . . Kicked . | . . . Crushed . | . . . Highest Temperature 194 | . 194 72 Average Temperature 49 | . 49 50 Received Heat Transfer 258 | . 150 108 Siege Activations . | . . . Martial Activations . | . . . Shielding Activations . | . . . Robots Disrupted . | . . . Combat Hostiles . | . . . Robots Corrupted 3 | . 1 2 Combat Hostiles 2 | . . 2 Parts Fried 4 | . . 4 Impact Corruptions . | . . . Robots Melted . | . . . Combat Hostiles . | . . . Parts Melted 1 | . 1 . Heat Transferred 100 | . 100 . Parts Sabotaged . | . . . Parts Stolen . | . . . Parts Stripped . | . . . Power Chain Reactions 2 | . 2 . Alert | -11 -10 -10 ------- Run | Yrd Mat Sub Maximum Alert Level . | . . . Low Security (%) 100 | 100 100 . Level 1 . | . . . Level 2 . | . . . Level 3 . | . . . Level 4 . | . . . Level 5 . | . . . High Security . | . . . Max Security . | . . . Peak Influence 166 | . 166 . Initial . | . . . Average 40 | . 43 . Influence Increases 479 | . 429 50 Destroy 0b10 Robot/C 220 | . 180 40 Destroy 0b10 Robot/NC 45 | . 45 . Destroy Leader 54 | . 44 10 Successful Hack 36 | . 36 . Disable Machine 45 | . 45 . Destroy Structure 49 | . 49 . Lose Combat Pursuer 30 | . 30 . Influence Decreases 479 | . 348 131 Entered New Map 40 | . . 40 Time Decay 419 | . 328 91 Lost Part 20 | . 20 . Squads Dispatched 4 | . 4 . Investigation 2 | . 2 . Extermination . | . . . Reinforcement 2 | . 2 . Assault . | . . . Garrison . | . . . Intercept . | . . . Searches Triggered . | . . . Construction Impeded . | . . . Haulers Reinforced . | . . . Active Scanning Responses . | . . . Cargo Convoy Interrupts . | . . . Stealth | -11 -10 -10 --------- Run | Yrd Mat Sub Distress Signals . | . . . Communications Jammed . | . . . Distress Signals . | . . . Times Spotted 30 | . 21 9 Peak Tracking Total 3 | . 3 2 Tactical Retreats 4 | . 3 1 Traps | -11 -10 -10 ------- Run | Yrd Mat Sub Traps Triggered 3 | . 3 . Indirectly . | . . . Trap Hack Attempts . | . . . Triggered . | . . . Disarmed . | . . . Reprogrammed . | . . . Reused . | . . . Traps Extracted . | . . . Installed . | . . . Triggered . | . . . Machines | -11 -10 -10 ---------- Run | Yrd Mat Sub Machines Disabled 4 | . 4 . Max in Single Turn 1 | . 1 . Machines Repaired . | . . . Machines Dismantled . | . . . Machines Sabotaged . | . . . Overloaded Fab Kills . | . . . Hacking | -11 -10 -10 --------- Run | Yrd Mat Sub Machines Accessed 5 | . 5 . Terminals 5 | . 5 . Fabricators . | . . . Repair Stations . | . . . Recycling Units . | . . . Scanalyzers . | . . . Garrison Access . | . . . Total Hacks 11 | . 11 . Successful 9 | . 9 . Failed 2 | . 2 . Catastrophic . | . . . Database Lockouts . | . . . Manual 11 | . 11 . Terminals 11 | . 11 . Fabricators . | . . . Repair Stations . | . . . Recycling Units . | . . . Scanalyzers . | . . . Garrison Access . | . . . Terminal Hacks . | . . . Fabricator Hacks . | . . . Repair Station Hacks . | . . . Recycling Unit Hacks . | . . . Scanalyzer . | . . . Garrison Access Hacks . | . . . Unauthorized Hacks 9 | . 9 . Terminals 9 | . 9 . Botnet 4 | . 4 . Skim 5 | . 5 . Fabricators . | . . . Repair Stations . | . . . Recycling Units . | . . . Scanalyzers . | . . . Garrison Access . | . . . Data Cores Recovered . | . . . Used . | . . . Hacking Detections 3 | . 3 . Full Trace Events . | . . . Feedback Events . | . . . Feedback Blocked . | . . . Robot Schematics Acquired . | . . . Robots Built . | . . . Authchips . | . . . Time . | . . . Total Robot Build Rating . | . . . Part Schematics Acquired . | . . . Parts Built . | . . . Authchips . | . . . Time . | . . . Total Part Build Rating . | . . . Parts Repaired . | . . . Time . | . . . Parts Recycled . | . . . Recycled Matter . | . . . Retrieved Matter . | . . . Retrieved Components . | . . . Parts Scanalyzed . | . . . Part Schematics Acquired . | . . . Parts Damaged . | . . . Bothacking | -11 -10 -10 ------------ Run | Yrd Mat Sub Used RIF Installer . | . . . Robots Hacked . | . . . Non-combat . | . . . Combat . | . . . Robot Hacks Applied . | . . . Relay Couplers Released . | . . . Fabnet Peak Effective % . | . . . Robots Rewired . | . . . Allies Hacked . | . . . Hacks Repelled . | . . . Allies | -11 -10 -10 -------- Run | Yrd Mat Sub Total Allies . | . . . Largest Group . | . . . Highest-Rated Group . | . . . Highest-Rated Ally . | . . . Total Orders . | . . . Ally Attacks . | . . . Total Damage . | . . . Kills . | . . . Allies Corrupted . | . . . Allies Melted . | . . . Intel | -11 -10 -10 ------- Run | Yrd Mat Sub Active Infowar (turns) . | . . . Robot Analysis Total . | . . . Derelict Logs Recovered 1 | . . 1 Drone Launches . | . . . Drone Recoveries . | . . . Exploration | -11 -10 -10 ------------- Run | Yrd Mat Sub Turns Passed 2895 | 89 1200 1606 Spaces Moved 1405 | 55 598 752 Core 10 | 10 . . Treads 1395 | 45 598 752 Legs . | . . . Wheels . | . . . Hover . | . . . Flight . | . . . Fastest Speed 50 | 50 160 160 Average Speed 159 | 140 160 160 Slowest Speed 240 | 160 160 240 Overloaded Moves . | . . . Propulsion Burnouts . | . . . Robots Hopped . | . . . Potential Cave-ins . | . . . Cave-ins Triggered . | . . . Exploration Rate (%) 43 | 4 71 54 Regions Visited 2 Branch Regions 1 Pre-discovered Areas 1 | . . 1 Known Exits Taken . | . . . Unknown Exits Taken 2 | 1 1 . Scrap Searched 1 | . . 1 Spaces Dug 1 | . 1 . Terrain Destroyed 58 | . 58 . Melee 1 | . 1 . Projectile . | . . . AOE 57 | . 57 . Terrain Rammed . | . . . Walls Destroyed . | . . . Machines Disabled . | . . . Actions | -11 -10 -10 --------- Run | Yrd Mat Sub Total 1863 | 64 743 1056 Wait 285 | . 59 226 Move 1403 | 54 597 752 Hop . | . . . Pick Up 22 | 2 16 4 Fast Attach 10 | 7 2 1 Attach 4 | . . 4 Detach 1 | 1 . . Swap 19 | . 15 4 Drop 11 | . 7 4 Fire 101 | . 46 55 Melee 1 | . 1 . Ram . | . . . Kick . | . . . Crush . | . . . Escape Stasis . | . . . Rewire . | . . . Trap . | . . . Miscellaneous 6 | . . 6 Route ------- -11/Scrapyard -10/Materials (discovered 4 exits: [*Mat x2] / [*Min] / [*Sub]) -10/Subcaves History --------- Turn | Location | Event 4 | -11/Scrapyard | Discovered new exit (range 15) 90 | -11/Scrapyard | Entered Materials 122 | -10/Materials | Discovered new exit (range 9) 308 | -10/Materials | Build established: Mutant 410 | -10/Materials | Discovered new exit (range 9) 542 | -10/Materials | Discovered new exit (range 3) 890 | -10/Materials | Derelicts attacked the area 904 | -10/Materials | Discovered new exit (range 15) 1290 | -10/Materials | Entered Subcaves 1298 | -10/Subcaves | Learned location of Zion (-6) 1420 | -10/Subcaves | Ambushed by Subdwellers from Twisted Machinery 1459 | -10/Subcaves | Core integrity fell below 50% 2151 | -10/Subcaves | A swath of the cavern ceiling suddenly collapsed 2355 | -10/Subcaves | Disturbed a concealed Subdweller 2378 | -10/Subcaves | Core integrity fell below 20% 2477 | -10/Subcaves | Curiously followed by a Cobbler waking with a query about "LVR3C" 2814 | -10/Subcaves | Ambushed by angry Subdweller bent on revenge 2891 | -10/Subcaves | Ambushed by angry Subdweller bent on revenge 2896 | -10/Subcaves | Destroyed by OA-GJQ(R) with Subdweller Shrapnel Launcher Last Messages --------------- 02767_ Acquired 11 matter. 02782_ OD-347(u) knocked back. 02784_ System corrupted: Battle Cannon jammed. 02807_ OD-347(u) cries out in pain. 02807_ OD-347(u) destroyed. 02812_ System corrupted: Energy discharge (-28). 02815_ Acquired 8 matter. 02817_ Acquired 2 matter. 02819_ EH-Q95(R): "OHNO!" 02823_ EH-Q95(R) destroyed. 02834_ Acquired 28 matter. 02836_ Acquired 12 matter. 02843_ L:V,RILTJ,T>,TH|RLJED# 02888_ UP-QTX(u) cries out in pain. 02888_ UP-QTX(u) destroyed. 02889_ System corrupted: Substantial component data lost. 02891_ OA-GJQ(R) angrily emerges from the Twisted Machinery. 02891_ OA-GJQ(R): "SUBMAD!" 02891_ Acquired 10 matter. 02896_ OA-GJQ(R) knocked back. Map ----- +----------------------------------------------------+ | ???????????????????????#"" #????????????? | | ???????????????????????## # %%##????????????? | | ????????????????????????## ## ##?????????????? | | ?????????????????????????# #### #?????????????? | | ?????????????????????????##???# ##????????????? | | ?????????????????????????????### #????????????? | | ????????????????????????????## #????????????? | | ????????????????????????????# """#????????????? | | ??????????????????????????###"""" ##???????????? | | ??????????????????????????#" #???????????? | | ?????????????????????????## ## ####???????????? | | ????????????????????????## #####??????????????? | | ????????????????????????# ##??????????????????? | | ????????????????????????# #???????????????????? | | ???????????????????????## #???????????????????? | | ?????????????????????### ##??????????????????? | | ?????????????????????# #??????????????????? | | ?????????????????????##" #??????????????????? | | ??????????????????????## ##?????????????????? | | ??????????????????#?#### ##????????????????? | | ??????????????? ### #"# #????????????????? | | ????????????? "" ### #????????????????? | | ??????????????# "" #######????????????????? | | ??????????????# # # ## R ##??????????????????? | | ???????????????????##?###= #??????????????????? | | ????????????????????????#@* ##??????????????????? | | ????????????????????????#= #???????????????????? | | ???????????????????????? #???????????????????? | | ????????????????????????"""###???????????????????? | | ???????????????????????#" ##?????????????????????? | | ???????????????????????# ##??????????????????????? | | ???????????????????????##????????????????????????? | | ?????????????????????????????????????????????????? | | ?????????????????????????????????????????????????? | | ?????????????????????????????????????????????????? | | ?????????????????????????????????????????????????? | | ?????????????????????????????????????????????????? | | ?????????????????????????????????????????????????? | | ?????????????????????????????????????????????????? | | ?????????????????????????????????????????????????? | | ?????????????????????????????????????????????????? | | ?????????????????????????????????????????????????? | | ?????????????????????????????????????????????????? | | ?????????????????????????????????????????????????? | | ?????????????????????????????????????????????????? | | ?????????????????????????????????????????????????? | | ?????????????????????????????????????????????????? | | ?????????????????????????????????????????????????? | | ?????????????????????????????????????????????????? | | ?????????????????????????????????????????????????? | +----------------------------------------------------+ Best States ------------- Heat Dissipation 25 Energy Generation 10 Energy Capacity 125 Matter Stores 300 Matter Capacity 300 Sight Range 16 Terrain Scan Density 10 Armor Coverage 800 Evasion (%) 40 Recoil Reduction 2 Item Schematics ----------------- None Robot Schematics ------------------ None Fabricated ------------ Nothing Repaired ---------- Nothing Alien Tech Used ----------------- None Achievements -------------- None Challenges ------------ None Game ------ Seed CloakingComponentAxe Manual? 0 Play Time 00:19:16 Cumulative 249.5 hours Start 2025.08.23 @ 21:02:56 End 2025.08.23 @ 21:16:09 Sessions 1 Manual Loads 0 Difficulty Rogue Special Mode None Game No. 207 Rogue 207 Adventurer 0 Explorer 0 Win Type - Total 13 Types 6/0/5/2/0/0/0/0/0/0 Lore% 80 Gallery% 74 Achievement% 69 Wizard Run 0 Options --------- Layout 1 ASCII 0 Keyboard 0 Movement Numpad Keybinds 0 Fullscreen 1 Font 32/SmallcapsGlow Map View 77x35 Zoom Use 0% Tactical HUD 1 Map Filters NONE Filters NONE Steam 1 RUN: cacc1920-2bad-4bd1-8990-8162b8dc022d